bitfinex/quotes_ETHUSD_20250810
["timestamp","ask_amount","ask_price","bid_price","bid_amount"]
[1754849387369,1e-08,4232.5,4232.4,11.76935505]
[1754849387666,1e-08,4232.5,4232.4,7.73995505]
[1754849387878,1e-08,4232.5,4232.4,11.33095505]
[1754849388971,1e-08,4232.5,4232.4,7.73995505]
[1754849389168,1e-08,4232.5,4232.4,11.32995505]
[1754849389343,1e-08,4232.5,4232.4,7.18995505]
[1754849389544,0.90430001,4232.5,4232.4,7.18995505]
[1754849389870,1e-08,4232.5,4232.4,11.32995505]
[1754849390844,1e-08,4232.5,4232.4,12.25265505]
[1754849391874,1e-08,4232.5,4232.4,11.77635505]
[1754849395549,1e-08,4232.5,4232.4,8.18635505]
[1754849395755,1e-08,4232.5,4232.4,11.77635505]
[1754849397169,1e-08,4232.5,4232.4,16.56265505]
[1754849398679,1e-08,4232.5,4232.4,17.98265505]
[1754849398857,1e-08,4232.5,4232.4,16.56265505]
[1754849400774,1e-08,4232.5,4232.4,16.08635505]
[1754849400976,1e-08,4232.5,4232.4,16.56265505]
[1754849401947,1e-08,4232.5,4232.4,16.08635505]
[1754849402793,1e-08,4232.5,4232.4,16.08435505]
[1754849403159,1e-08,4232.5,4232.4,16.56065505]
[1754849403374,1e-08,4232.5,4232.4,16.08435505]
[1754849403681,0.45750001,4232.5,4232.4,15.08795505]
[1754849403981,0.90430001,4232.5,4232.4,15.63795505]
[1754849409022,0.90430001,4232.5,4232.4,11.32795505]
[1754849410400,0.90430001,4232.5,4232.4,7.73995505]
[1754849410719,0.90430001,4232.5,4232.4,7.18995505]
[1754849410895,0.90430001,4232.5,4232.4,9.77851364]
[1754849420682,1e-08,4232.5,4232.4,9.77851364]
[1754849423899,1e-08,4232.5,4232.4,10.32851364]
[1754849424190,1e-08,4232.5,4232.4,11.27051364]
[1754849425061,0.002,4233.4,4233.3,2.36222332]
[1754849425307,0.002,4233.4,4233.3,9.06862332]
[1754849425503,0.4675,4233.4,4233.3,9.06862332]
[1754849425687,0.9598,4233.4,4233.3,9.06862332]
[1754849426300,0.9598,4233.4,4233.3,5.48062332]
[1754849426498,0.9598,4233.4,4233.3,9.06862332]
[1754849432888,0.9598,4233.4,4233.3,5.48062332]
[1754849433080,0.9598,4233.4,4233.3,9.06862332]
[1754849434583,0.9598,4233.4,4233.3,6.06862332]
[1754849434784,0.9598,4233.4,4233.3,2.48062332]
[1754849434983,0.9598,4233.4,4233.3,6.06862332]
[1754849435373,0.9598,4233.4,4233.3,0.1184]
[1754849435567,0.9598,4233.4,4233.3,3.7064]
[1754849437912,0.9598,4233.4,4233.3,0.1184]
[1754849438476,0.9598,4233.4,4233.3,3.7064]
[1754849438919,0.9598,4233.4,4233.3,0.1184]
[1754849439083,0.9598,4233.4,4233.3,3.7064]
[1754849441277,1.29198136,4233.4,4233.3,3.7064]
[1754849441803,0.9598,4233.4,4233.3,0.1184]
[1754849442009,0.9598,4233.4,4233.3,3.7064]
[1754849443159,0.002,4233.4,4233.3,6.06862332]
[1754849443424,0.002,4233.4,4233.3,9.51202332]
[1754849443571,0.002,4233.4,4233.3,10.01062332]
[1754849443769,0.002,4233.4,4233.3,11.24791629]
[1754849444970,0.002,4233.4,4233.3,10.74931629]
[1754849445173,0.002,4233.4,4233.3,9.51202332]
[1754849446827,0.002,4233.4,4233.3,10.01062332]
[1754849447392,0.002,4233.4,4233.3,6.42262332]
[1754849447611,0.002,4233.4,4233.3,10.00962332]
[1754849449628,0.002,4233.4,4233.3,10.06102332]
[1754849449817,0.002,4233.4,4233.3,12.15832157]
[1754849451038,0.002,4233.4,4233.3,8.57132157]
[1754849451229,0.002,4233.4,4233.3,12.15832157]
[1754849453143,0.002,4233.4,4233.3,11.68882157]
[1754849453741,0.002,4233.4,4233.3,11.24542157]
[1754849453958,0.002,4233.4,4233.3,7.10842157]
[1754849454131,0.9477,4233.4,4233.3,9.06762332]
[1754849455614,0.002,4233.8,4233.7,2.91200014]
[1754849455814,1e-08,4234.3,4233.9,0.55]
[1754849456026,1e-08,4234.3,4234.2,9.79019796]
[1754849456250,1e-08,4234.3,4234.2,13.37719796]
[1754849456414,1e-08,4234.3,4234.2,14.31529796]
[1754849456920,1e-08,4234.3,4234.2,14.40984296]
[1754849458634,1e-08,4234.3,4234.2,10.82284296]
[1754849458853,1e-08,4234.3,4234.2,15.58753357]
[1754849461984,1e-08,4234.3,4234.2,15.58653357]
[1754849462544,1e-08,4234.3,4234.2,10.88835683]
[1754849468015,1e-08,4234.3,4234.2,11.35695683]
[1754849470123,1e-08,4234.3,4234.2,10.88835683]
[1754849470824,1e-08,4234.3,4234.2,15.11703357]
[1754849473738,1e-08,4234.3,4234.2,15.58653357]
[1754849475139,1e-08,4234.3,4234.2,15.11703357]
[1754849477341,1e-08,4234.3,4234.2,14.64843357]
[1754849478124,1e-08,4234.3,4234.2,6.75235683]
[1754849478326,0.88710001,4234.3,4234.2,9.15966622]
[1754849478526,0.88710001,4234.3,4234.2,5.57466622]
[1754849478741,0.88710001,4234.3,4234.2,6.15966622]
[1754849479042,0.88710001,4234.3,4234.2,9.15966622]
[1754849479710,0.88710001,4234.3,4234.2,5.57466622]
[1754849479908,0.88710001,4234.3,4234.2,5.48012122]
[1754849480131,0.88710001,4234.3,4234.2,9.06512122]
[1754849480703,0.88710001,4234.3,4234.2,5.48012122]
[1754849480936,0.88710001,4234.3,4234.2,9.06612122]
[1754849483747,0.88710001,4234.3,4234.2,5.48012122]
[1754849484037,0.88710001,4234.3,4234.2,9.06612122]
[1754849485109,0.88710001,4234.3,4234.2,5.48012122]
[1754849485330,0.88710001,4234.3,4234.2,9.06612122]
[1754849488549,1e-08,4234.3,4234.2,9.06612122]
[1754849488748,1e-08,4234.3,4234.2,11.13761528]
[1754849488954,1e-08,4234.3,4234.2,11.39298028]
[1754849491054,1e-08,4234.3,4234.2,11.84678028]
[1754849491757,1e-08,4234.3,4234.2,12.39678028]
[1754849493654,1e-08,4234.3,4234.2,11.46808028]
[1754849493862,1e-08,4234.3,4234.2,7.88208028]
[1754849494158,1e-08,4234.3,4234.2,11.46808028]
[1754849494725,1e-08,4234.3,4234.2,11.94298028]
[1754849494954,1e-08,4234.3,4234.2,12.39678028]
[1754849498566,1e-08,4234.3,4234.2,11.94298028]
[1754849499991,1e-08,4234.3,4234.2,11.46808028]
[1754849500195,1e-08,4234.3,4234.2,7.33208028]
[1754849500359,0.88710001,4234.3,4234.2,9.77428622]
[1754849501257,1e-08,4234.3,4234.2,9.77428622]
[1754849501454,1e-08,4234.3,4234.2,10.79918622]
[1754849501659,1e-08,4234.3,4234.2,11.25298622]
[1754849502284,1e-08,4234.3,4234.2,10.79918622]
[1754849502504,1e-08,4234.3,4234.2,12.11528678]
[1754849503009,1e-08,4234.3,4234.2,11.64038678]
[1754849504879,1e-08,4234.3,4234.2,8.05538678]
[1754849505075,1e-08,4234.3,4234.2,11.64038678]
[1754849505886,1e-08,4234.3,4234.2,12.11528678]
[1754849506773,1e-08,4234.3,4234.2,11.64038678]
[1754849507004,1e-08,4234.3,4234.2,12.56908678]
[1754849507820,1e-08,4234.3,4234.2,12.11528678]
[1754849510924,1e-08,4234.8,4234.3,3.0]
[1754849511131,1e-08,4234.8,4234.7,6.6715191]
[1754849511421,1e-08,4234.8,4234.7,10.3749191]
[1754849511604,1e-08,4234.8,4234.7,10.4694591]
[1754849517933,1e-08,4234.8,4234.7,10.9401591]
[1754849518145,1e-08,4234.8,4234.7,12.16148617]
[1754849519304,1e-08,4234.8,4234.7,12.63218617]
[1754849520130,1e-08,4234.8,4234.7,12.16148617]
[1754849520428,1e-08,4234.8,4234.7,12.63218617]
[1754849520626,1e-08,4234.8,4234.7,12.16148617]
[1754849521130,1e-08,4234.8,4234.7,13.12108617]
[1754849521444,0.458,4235.7,4235.6,2.36094059]
[1754849521619,0.458,4235.7,4235.6,5.94494059]
[1754849522132,0.46,4235.7,4235.6,6.06334059]
[1754849523500,0.002,4235.7,4235.6,6.06334059]
[1754849524132,0.9122,4235.7,4235.6,6.06334059]
[1754849527138,0.002,4235.7,4235.6,6.06334059]
[1754849527726,0.9122,4235.7,4235.6,6.06334059]
[1754849528937,0.002,4235.7,4235.6,9.9515761]
[1754849539825,0.002,4235.7,4235.6,9.9505761]
[1754849543468,0.9344,4235.7,4235.6,5.47934059]
[1754849546472,0.9344,4235.7,4235.6,9.06234059]
[1754849547075,0.002,4235.7,4235.6,9.53404059]
[1754849547236,0.002,4235.7,4235.6,10.77204867]
[1754849547559,0.002,4235.7,4235.6,9.06234059]
[1754849547941,0.002,4235.7,4235.6,9.06334059]
[1754849548560,0.002,4235.7,4235.6,9.53504059]
[1754849549638,0.002,4235.7,4235.6,10.02004059]
[1754849550128,0.002,4235.7,4235.6,9.53504059]
[1754849551253,0.002,4235.7,4235.6,10.34519867]
[1754849552450,0.002,4235.7,4235.6,10.81689867]
[1754849553686,0.002,4235.7,4235.6,10.34519867]
[1754849555253,0.002,4235.7,4235.6,10.81689867]
[1754849556038,0.002,4236.6,4235.8,2.36082912]
[1754849556239,0.002,4236.6,4235.8,11.57885957]
[1754849556478,0.002,4236.6,4235.8,12.06385957]
[1754849556649,0.002,4236.6,4235.8,12.53555957]
[1754849558739,0.9344,4236.6,4235.8,12.53555957]
[1754849559167,0.002,4236.6,4235.8,12.05055957]
[1754849559470,0.4375,4236.4,4235.8,11.57885957]
[1754849559981,0.4375,4236.4,4235.8,12.05055957]
[1754849560284,0.4375,4236.4,4235.8,12.53555957]
[1754849560480,0.4375,4236.4,4235.8,12.05055957]
[1754849561381,0.4375,4236.4,4235.8,11.57885957]
[1754849561581,0.4375,4236.1,4235.8,11.57885957]
[1754849561753,0.4949,4236.2,4235.8,11.57885957]
[1754849562379,0.4375,4236.4,4235.8,11.57885957]
[1754849563408,0.4375,4236.4,4235.8,7.99685957]
[1754849563756,0.4375,4236.4,4235.8,11.57885957]
[1754849564158,0.4375,4236.4,4235.8,12.05055957]
[1754849564360,0.9324,4236.3,4235.8,11.57885957]
[1754849565276,0.9324,4236.3,4235.8,7.99685957]
[1754849565585,0.9724,4235.9,4235.8,8.94282912]
[1754849566094,0.04,4235.9,4235.8,8.94282912]
[1754849566493,0.04,4235.9,4235.8,10.08292912]
[1754849566682,0.04,4235.9,4235.8,10.56792912]
[1754849567264,1e-08,4235.9,4235.8,10.56792912]
[1754849567562,1e-08,4235.9,4235.8,12.28067377]
[1754849569792,1e-08,4235.9,4235.8,11.79567377]
[1754849570387,1e-08,4235.9,4235.8,12.25277377]
[1754849571064,1e-08,4235.9,4235.8,12.55277377]
[1754849577365,1e-08,4235.9,4235.8,12.55177377]
[1754849583308,1.85808074,4238.1,4235.8,12.55177377]
[1754849583309,1e-08,4236.9,4236.8,0.55]
[1754849583504,1e-08,4236.9,4236.8,4.13]
[1754849583697,1e-08,4236.9,4236.8,9.6086719]
[1754849586499,1e-08,4236.9,4236.8,10.5075719]
[1754849589092,1e-08,4237.3,4237.2,2.91004908]
[1754849589408,1e-08,4237.3,4237.2,9.49004908]
[1754849589610,1e-08,4237.5,4237.4,5.90993769]
[1754849589825,1e-08,4237.5,4237.4,9.48993769]
[1754849590224,1e-08,4237.5,4237.4,10.19852769]
[1754849591625,0.94350001,4237.5,4237.4,10.19852769]
[1754849591821,1e-08,4237.5,4237.4,10.19852769]
[1754849592893,0.00200001,4237.5,4237.4,10.19852769]
[1754849597234,0.94550001,4237.5,4237.4,10.19852769]
[1754849597701,0.94550001,4237.5,4237.4,6.61852769]
[1754849597901,0.94550001,4237.5,4237.4,10.19752769]
[1754849598519,0.00200001,4237.5,4237.4,10.19752769]
[1754849599134,0.47050001,4237.5,4237.4,10.19752769]
[1754849599335,0.93460001,4237.5,4237.4,10.19752769]
[1754849600138,0.93460001,4237.5,4237.4,6.06852769]
[1754849600303,0.93460001,4237.5,4237.4,9.64752769]
[1754849602549,1.4848209,4237.5,4237.4,8.93893769]
[1754849603625,1.4848209,4237.5,4237.2,0.827117]
[1754849603826,0.5522209,4237.5,4237.2,3.6974]
[1754849604143,0.9326,4237.4,4237.3,3.0]
[1754849604737,0.9326,4237.4,4237.2,0.1184]
[1754849604945,0.5522209,4237.5,4237.3,3.0]
[1754849605521,0.9326,4237.4,4237.3,3.0]
[1754849605920,0.9326,4237.4,4237.2,3.1184]
[1754849606132,0.9326,4237.3,4237.2,3.1184]
[1754849606344,0.9326,4237.3,4237.2,0.1184]
[1754849606512,0.9326,4237.3,4237.2,3.1184]
[1754849607409,1.22946508,4237.3,4237.2,0.1184]
[1754849608034,3.58945847,4237.3,4237.2,0.1184]
[1754849608212,1.22946508,4237.3,4237.2,0.1184]
[1754849608641,3.58945847,4237.3,4237.2,0.1184]
[1754849609819,4.80846508,4237.3,4237.2,0.1184]
[1754849610223,7.16846265,4237.3,4237.2,0.1184]
[1754849610830,2.36020353,4237.0,4236.8,0.1184]
[1754849611036,0.47202526,4236.9,4236.8,0.1184]
[1754849611344,1.40462526,4236.9,4236.8,0.1184]
[1754849611546,0.9326,4236.9,4236.8,0.1184]
[1754849617159,3.579,4237.2,4236.8,0.1184]
[1754849617451,0.9326,4236.9,4236.8,0.1184]
[1754849617754,0.9326,4236.9,4236.5,2.36142387]
[1754849617959,5.93905284,4237.2,4236.8,0.1184]
[1754849618154,4.49380277,4237.2,4237.1,0.1184]
[1754849618776,5.42640277,4237.2,4237.1,0.1184]
[1754849619359,7.78645185,4237.2,4237.1,0.1184]
[1754849619864,5.42640277,4237.2,4237.1,0.1184]
[1754849620330,7.78645185,4237.2,4237.1,0.1184]
[1754849621548,7.78645185,4237.2,4236.5,0.001]
[1754849621549,2.36016049,4237.0,4236.9,0.1184]
[1754849621959,3.29276049,4237.0,4236.9,0.1184]
[1754849622129,2.36038332,4236.6,4236.5,0.001]
[1754849622472,5.93938332,4236.6,4236.5,0.001]
[1754849622635,6.87198332,4236.6,4236.5,0.001]
[1754849622957,7.80704929,4236.6,4236.5,0.001]
[1754849624132,8.35704929,4236.6,4236.5,0.001]
[1754849624842,8.53549467,4236.6,4236.5,0.001]
[1754849625436,8.65518685,4236.6,4236.5,0.001]
[1754849626049,9.16249532,4236.6,4236.5,0.001]
[1754849626236,12.16249532,4236.6,4236.5,1e-08]
[1754849627970,12.16349532,4236.6,4236.5,1e-08]
[1754849630871,11.65618685,4236.6,4236.5,1e-08]
[1754849631070,7.40649467,4236.6,4236.5,1e-08]
[1754849631256,10.98649467,4236.6,4236.5,1e-08]
[1754849634061,12.04357606,4236.6,4236.5,1e-08]
[1754849637455,12.04557606,4236.6,4236.5,1e-08]
[1754849638978,12.26573526,4236.6,4236.5,1e-08]
[1754849639949,16.26573526,4236.6,4236.5,1e-08]
[1754849640978,16.04557606,4236.6,4236.5,1e-08]
[1754849641283,16.26576247,4236.6,4236.5,1e-08]
[1754849643895,16.26581749,4236.6,4236.5,1e-08]
[1754849645385,16.8999446,4236.6,4236.5,1e-08]
[1754849645761,24.0699446,4236.6,4236.5,1e-08]
[1754849646069,23.53038449,4236.6,4236.5,1e-08]
[1754849646270,2.91066192,4236.1,4236.0,0.001]
[1754849646472,10.11714331,4236.1,4236.0,0.001]
[1754849646672,10.61154331,4236.1,4236.0,0.001]
[1754849646865,11.06084331,4236.1,4236.0,0.001]
[1754849647283,11.28128448,4236.1,4236.0,0.001]
[1754849647461,15.3382263,4236.1,4236.0,0.001]
[1754849648097,5.91088485,4235.7,4235.6,1e-08]
[1754849648260,10.46589533,4235.7,4235.6,1e-08]
[1754849648468,11.28150741,4235.7,4235.6,1e-08]
[1754849650115,6.75680741,4235.7,4235.6,1e-08]
[1754849650407,11.78167054,4235.7,4235.6,1e-08]
[1754849651399,11.1461391,4235.7,4235.6,1e-08]
[1754849652266,11.99043457,4235.7,4235.6,1e-08]
[1754849652465,11.1461391,4235.7,4235.6,1e-08]
[1754849653215,11.99043457,4235.7,4235.6,1e-08]
[1754849654370,14.47643457,4235.7,4235.6,1e-08]
[1754849654570,12.93413457,4235.7,4235.6,1e-08]
[1754849655297,12.0898391,4235.7,4235.6,1e-08]
[1754849655793,11.1461391,4235.7,4235.6,1e-08]
[1754849655999,10.5961391,4235.7,4235.6,1e-08]
[1754849656276,10.5961391,4235.7,4235.6,0.46430001]
[1754849657216,10.5961391,4235.7,4235.6,1e-08]
[1754849658110,11.5391391,4235.7,4235.6,1e-08]
[1754849658419,10.5961391,4235.7,4235.6,1e-08]
[1754849662935,10.5961391,4235.7,4235.6,0.93180001]
[1754849665130,7.37569793,4235.7,4235.6,0.93180001]
[1754849665320,6.56736624,4235.7,4235.6,0.93180001]
[1754849665719,2.98636624,4235.7,4235.6,0.93180001]
[1754849665921,6.06028485,4235.7,4235.6,0.93180001]
[1754849666100,6.56736624,4235.7,4235.6,0.93180001]
[1754849666304,7.4601802,4235.7,4235.6,0.93180001]
[1754849666505,7.4601802,4235.7,4235.6,0.44570001]
[1754849669043,7.4601802,4235.7,4235.6,1e-08]
[1754849669842,7.4601802,4235.7,4235.6,0.44570001]
[1754849670042,7.4601802,4235.7,4235.6,0.39570001]
[1754849670845,2.36105208,4235.4,4235.3,0.4861]
[1754849671017,5.94105208,4235.4,4235.3,0.4861]
[1754849671226,6.05945208,4235.4,4235.3,0.4861]
[1754849672249,6.05945208,4235.4,4235.3,0.9318]
[1754849674757,2.36110783,4235.3,4235.2,0.001]
[1754849674937,3.81370757,4235.3,4235.2,0.001]
[1754849675136,4.03491929,4235.3,4235.2,0.001]
[1754849680645,3.09191929,4235.3,4235.2,0.001]
[1754849680862,6.45070757,4235.3,4235.2,0.9328]
[1754849681167,5.94110783,4235.3,4235.2,0.9328]
[1754849681773,6.81031153,4235.3,4235.2,0.001]
[1754849681959,7.31995212,4235.3,4235.2,0.001]
[1754849691307,8.24235212,4235.3,4235.2,0.001]
[1754849691486,8.46359339,4235.3,4235.2,0.001]
[1754849692693,2.91127508,4235.0,4234.7,0.001]
[1754849692890,6.71253433,4235.0,4234.7,0.001]
[1754849693078,8.90002566,4235.0,4234.7,0.001]
[1754849693280,11.90002566,4235.0,4234.9,1e-08]
[1754849693480,11.26297492,4235.0,4234.9,1e-08]
[1754849693673,11.26297492,4235.0,4234.7,0.001]
[1754849693674,5.91149813,4234.6,4233.9,0.001]
[1754849693883,10.34079797,4234.6,4233.9,0.001]
[1754849694112,10.97794091,4234.6,4233.9,0.001]
[1754849694400,11.26319797,4234.6,4233.9,0.001]
[1754849699378,11.04193872,4234.6,4233.9,0.001]
[1754849699580,11.93475268,4234.6,4233.9,0.001]
[1754849700419,12.15561086,4234.6,4233.9,0.001]
[1754849701914,12.15561086,4234.6,4233.9,0.4711]
[1754849702282,11.23321086,4234.6,4234.1,0.9608]
[1754849702477,11.23321086,4234.6,4233.9,0.001]
[1754849702678,12.15561086,4234.6,4233.9,0.4711]
[1754849703115,11.23321086,4234.6,4233.9,0.001]
[1754849703413,11.01235268,4234.6,4234.2,0.4701]
[1754849704014,11.70146814,4234.6,4234.0,0.001]
[1754849704200,11.23316814,4234.6,4234.0,0.001]
[1754849704407,11.01235268,4234.6,4234.1,0.4701]
[1754849705080,11.01235268,4234.6,4234.3,0.4711]
[1754849705081,6.76395268,4234.6,4234.3,0.4711]
[1754849705286,6.56953872,4234.6,4234.5,0.9618]
[1754849705488,6.05989813,4234.6,4234.5,0.9618]
[1754849706341,6.05989813,4234.6,4234.5,0.001]
[1754849707140,6.05989813,4234.6,4234.5,0.9618]
[1754849710345,6.05989813,4234.6,4234.5,0.4711]
[1754849710549,6.90203025,4234.6,4234.5,0.001]
[1754849713354,7.41084533,4234.6,4234.5,0.001]
[1754849714629,6.90203025,4234.6,4234.5,0.001]
[1754849714829,7.4109438,4234.6,4234.5,0.001]
[1754849716648,7.4109438,4234.6,4234.5,0.4711]
[1754849717039,7.4109438,4234.6,4234.5,0.9618]
[1754849717475,7.4109438,4234.6,4234.5,0.4711]
[1754849717631,6.56881168,4234.6,4234.5,0.4711]
[1754849720063,6.56881168,4234.6,4234.5,0.001]
[1754849723808,6.57081168,4234.6,4234.5,0.001]
[1754849725224,6.57081168,4234.6,4234.5,0.4406]
[1754849725790,6.57081168,4234.6,4234.5,0.001]
[1754849726104,7.52774945,4234.6,4234.5,0.001]
[1754849727232,7.52774945,4234.6,4234.5,0.4406]
[1754849727521,4.09091355,4234.6,4234.5,0.8978]
[1754849727696,3.582,4234.6,4234.5,0.8978]
[1754849729620,3.582,4234.6,4234.5,1.0162]
[1754849731123,0.002,4234.6,4234.5,1.0162]
[1754849731331,0.002,4234.6,4234.5,3.3777539]
[1754849731939,0.002,4234.6,4234.5,1.0162]
[1754849733394,0.002,4234.6,4234.5,0.1194]
[1754849734425,0.002,4234.6,4234.5,1.0162]
[1754849735096,0.002,4234.6,4234.5,0.1194]
[1754849735520,0.002,4234.6,4234.5,0.559]
[1754849737099,0.002,4234.6,4234.5,1.0162]
[1754849742736,0.002,4234.6,4234.5,0.559]
[1754849742937,0.002,4234.6,4234.5,0.1194]
[1754849743131,0.002,4234.6,4234.5,0.559]
[1754849743331,0.002,4234.6,4234.5,0.1194]
[1754849743840,0.002,4234.6,4234.5,0.559]
[1754849747235,0.002,4234.6,4234.5,0.1194]
[1754849758255,3.68139813,4234.6,4234.5,0.001]
[1754849760173,3.9371,4234.6,4234.5,0.001]
[1754849760363,5.94049813,4234.6,4234.5,0.001]
[1754849760727,0.002,4234.6,4234.5,0.001]
[1754849761247,3.32329813,4234.6,4234.5,0.001]
[1754849763562,0.002,4234.6,4234.5,0.001]
[1754849764767,2.36349813,4234.6,4234.5,0.001]
[1754849764971,3.66028768,4234.6,4234.5,0.001]
[1754849765134,4.15348768,4234.6,4234.5,0.001]
[1754849769067,0.83218955,4234.6,4234.5,0.001]
[1754849769236,0.002,4234.6,4234.5,0.001]
[1754849769641,0.002,4234.6,4234.5,0.4519]
[1754849771139,0.002,4234.6,4234.5,0.001]
[1754849771344,0.002,4234.6,4234.5,1.0396]
[1754849778079,0.002,4234.6,4234.5,0.5703]
[1754849778483,0.002,4234.6,4234.5,0.1194]
[1754849786977,3.92827306,4234.6,4234.5,0.1194]
[1754849787176,3.92827306,4234.6,4234.5,0.001]
[1754849790093,4.43827726,4234.6,4234.5,0.001]
[1754849794294,0.002,4234.6,4234.5,0.001]
[1754849794493,3.578,4234.6,4234.5,0.9496]
[1754849797292,3.578,4234.6,4234.5,0.4675]
[1754849797478,3.578,4234.6,4234.5,0.9496]
[1754849797684,0.002,4234.6,4234.5,3.3111539]
[1754849798198,0.002,4234.6,4234.5,0.9496]
[1754849799518,0.002,4234.6,4234.5,3.3111539]
[1754849800087,0.002,4234.6,4234.5,0.9496]
[1754849801588,0.002,4234.6,4234.5,0.4675]
[1754849809333,0.002,4234.6,4234.5,2.8290539]
[1754849809505,0.002,4234.6,4234.5,0.4675]
[1754849809907,0.002,4234.6,4234.4,0.1184]
[1754849810238,0.002,4234.6,4234.4,0.5921]
[1754849810949,0.002,4234.6,4234.4,0.1184]
[1754849811943,6.6655875,4234.5,4234.3,0.001]
[1754849812142,2.48000967,4234.4,4234.3,0.001]
[1754849812436,3.44110967,4234.4,4234.3,0.001]
[1754849813755,3.61854929,4234.4,4234.3,0.001]
[1754849816535,4.12803756,4234.4,4234.3,0.001]
[1754849816740,5.11149007,4234.4,4234.3,0.001]
[1754849818516,4.6020018,4234.4,4234.3,0.001]
[1754849823745,3.6409018,4234.4,4234.3,0.001]
[1754849824247,4.6020018,4234.4,4234.3,0.001]
[1754849825317,4.1071018,4234.4,4234.3,0.001]
[1754849825538,3.6409018,4234.4,4234.3,0.001]
[1754849826255,1.27929213,4234.4,4234.3,0.4747]
[1754849826415,0.29583962,4234.4,4234.3,0.4747]
[1754849826762,0.17743962,4234.4,4234.3,0.4747]
[1754849827061,3.3429336,4234.5,4234.3,0.9504]
[1754849827224,3.3429336,4234.5,4234.3,0.4747]
[1754849827420,3.3429336,4234.5,4234.4,0.9494]
[1754849828464,0.002,4234.6,4234.4,0.9494]
[1754849828666,0.002,4234.6,4234.5,0.9494]
[1754849829440,0.002,4234.6,4234.5,1.0678]
[1754849830146,0.002,4234.6,4234.5,0.5921]
[1754849835839,0.002,4234.6,4234.5,0.1184]
[1754849836242,3.575,4234.7,4234.5,0.1184]
[1754849836243,3.5242,4234.7,4234.5,0.1184]
[1754849838769,3.574,4234.7,4234.6,0.4544]
[1754849839462,3.574,4234.7,4234.5,0.1184]
[1754849839829,3.574,4234.7,4234.5,0.5728]
[1754849840228,3.574,4234.7,4234.6,0.4544]
[1754849841464,2.36149813,4234.6,4234.5,0.1184]
[1754849841642,1.7554886,4234.6,4234.3,0.001]
[1754849841966,2.36160967,4234.4,4234.3,0.001]
[1754849842170,5.93560967,4234.4,4234.3,0.001]
[1754849842340,6.86140967,4234.4,4234.3,0.001]
[1754849843065,7.03842407,4234.4,4234.3,0.001]
[1754849843378,8.30937594,4234.4,4234.3,0.001]
[1754849845276,8.81878423,4234.4,4234.3,0.001]
[1754849845943,8.81878423,4234.4,4234.0,0.001]
[1754849845944,2.361777,4234.1,4234.0,0.001]
[1754849846278,6.054177,4234.1,4234.0,0.001]
[1754849846435,8.61928699,4234.1,4234.0,0.001]
[1754849849584,7.69348699,4234.1,4234.0,0.001]
[1754849849872,8.61928699,4234.1,4234.0,0.001]
[1754849850562,8.61891556,4234.1,4234.0,0.001]
[1754849852772,3.0,4234.0,4233.3,0.001]
[1754849852978,2.36216752,4233.4,4233.3,0.001]
[1754849853270,5.93616752,4233.4,4233.3,0.001]
[1754849853577,7.37100438,4233.4,4233.3,0.001]
[1754849854151,7.37100438,4233.4,4233.3,1e-08]
[1754849854365,8.59235972,4233.4,4233.3,1e-08]
[1754849855160,5.36222332,4233.3,4233.0,0.001]
[1754849855353,2.48073493,4233.1,4233.0,0.001]
[1754849855875,3.40653493,4233.1,4233.0,0.001]
[1754849856094,4.28582006,4233.1,4233.0,0.001]
[1754849856667,3.36002006,4233.1,4233.0,0.001]
[1754849857983,4.28582006,4233.1,4233.0,0.001]
[1754849861689,2.36272564,4232.4,4232.3,0.001]
[1754849861877,6.48672564,4232.4,4232.3,0.001]
[1754849862075,2.91283729,4232.2,4232.1,0.001]
[1754849862385,6.48683729,4232.2,4232.1,0.001]
[1754849862757,7.41263729,4232.2,4232.1,0.001]
[1754849863588,6.05623729,4232.2,4232.1,0.001]
[1754849864169,6.23318417,4232.2,4232.1,0.001]
[1754849864478,7.07538275,4232.2,4232.1,0.001]
[1754849867563,3.87034688,4232.2,4232.1,0.001]
[1754849867780,3.87034688,4232.2,4232.1,0.974]
[1754849872485,3.87034688,4232.2,4232.1,0.4749]
[1754849872988,6.23318417,4232.2,4232.1,0.4749]
[1754849873663,3.87034688,4232.2,4232.1,0.4749]
[1754849873868,3.75194688,4232.2,4232.1,0.974]
[1754849874317,6.11478417,4232.2,4232.1,0.974]
[1754849874663,6.11478417,4232.2,4232.1,0.4749]
[1754849875079,6.11478417,4232.2,4232.1,0.001]
[1754849878775,8.13161615,4232.2,4232.1,0.001]
[1754849880405,7.18721615,4232.2,4232.1,0.001]
[1754849881307,7.18721615,4232.2,4232.1,0.4749]
[1754849881607,6.23318417,4232.2,4232.1,0.4749]
[1754849882576,2.65818417,4232.2,4232.1,0.4749]
[1754849882908,6.23318417,4232.2,4232.1,0.974]
[1754849884105,6.23318417,4232.2,4232.1,0.4749]
[1754849884607,6.23318417,4232.2,4232.1,0.001]
[1754849886525,2.65818417,4232.2,4232.1,0.4749]
[1754849886736,6.23318417,4232.2,4232.1,0.974]
[1754849887394,6.23318417,4232.2,4232.1,0.4749]
[1754849888500,6.23318417,4232.2,4232.1,0.001]
[1754849890104,2.65818417,4232.2,4232.1,0.001]
[1754849890421,6.23318417,4232.2,4232.1,0.001]
[1754849894330,6.74263716,4232.2,4232.1,0.001]
[1754849897046,6.23318417,4232.2,4232.1,0.001]
[1754849900052,6.23318417,4232.2,4232.1,0.4494]
[1754849900354,0.29534688,4232.2,4232.1,0.4494]
[1754849900531,3.75094688,4232.2,4232.1,0.4494]
[1754849900847,6.11378417,4232.2,4232.1,0.9097]
[1754849901053,3.75094688,4232.2,4232.1,0.9097]
[1754849901354,6.11378417,4232.2,4232.1,0.4494]
[1754849901563,6.11378417,4232.2,4232.1,0.001]
[1754849903656,2.53978417,4232.2,4232.1,0.001]